bitfinex-derivatives/quotes_BTCF0:USTF0_20250509
["timestamp","ask_amount","ask_price","bid_price","bid_amount"]
[1746779524835,0.0414,103920.0,103910.0,0.76171474]
[1746779525031,0.0414,103920.0,103910.0,0.76271474]
[1746779525338,0.001,103920.0,103910.0,0.77399932]
[1746779525524,0.0468053,103930.0,103920.0,0.1924268]
[1746779525833,0.19209161,103950.0,103940.0,0.1923898]
[1746779526021,0.19353624,103950.0,103940.0,0.5501898]
[1746779526228,0.35079954,103950.0,103940.0,0.5501898]
[1746779526424,0.16,103950.0,103940.0,0.5501898]
[1746779526628,0.37057096,103970.0,103940.0,0.46828636]
[1746779526826,0.24186453,103970.0,103950.0,0.4989794]
[1746779527023,0.24186453,103970.0,103960.0,0.039]
[1746779527228,0.19379743,103960.0,103950.0,0.2328585]
[1746779527428,0.19379743,103960.0,103940.0,1.0706718]
[1746779527429,0.001,103950.0,103940.0,1.0706718]
[1746779527625,0.0899,103950.0,103940.0,1.12245296]
[1746779527821,0.2822713,103950.0,103940.0,1.21864842]
[1746779528022,0.28371593,103950.0,103940.0,0.52409546]
[1746779528235,0.80851593,103950.0,103940.0,0.52409546]
[1746779528441,0.44771593,103950.0,103940.0,0.71648526]
[1746779528633,0.25534463,103950.0,103940.0,0.76088526]
[1746779528931,0.44771593,103950.0,103940.0,0.76088526]
[1746779529231,0.25534463,103950.0,103940.0,0.76088526]
[1746779529439,0.2539,103950.0,103940.0,1.12168526]
[1746779529728,0.2539,103950.0,103940.0,1.11796762]
[1746779529729,0.16,103950.0,103940.0,1.11796762]
[1746779529933,0.14844707,103950.0,103940.0,1.15826762]
[1746779530235,0.08486504,103960.0,103950.0,0.1923713]
[1746779530429,0.001,103960.0,103950.0,1.05335366]
[1746779530629,0.04321055,103970.0,103960.0,0.1923528]
[1746779530833,0.1923158,103980.0,103970.0,0.2404165]
[1746779531024,0.19376043,103980.0,103970.0,0.74258126]
[1746779531229,0.35102809,103980.0,103970.0,0.09628236]
[1746779531528,0.35376043,103980.0,103970.0,0.64941666]
[1746779531828,0.35376043,103980.0,103970.0,0.74559362]
[1746779531829,0.16144463,103980.0,103970.0,0.74559362]
[1746779532126,0.3573158,103980.0,103970.0,0.19345932]
[1746779532327,0.71956043,103980.0,103970.0,0.01228236]
[1746779532528,0.76426043,103980.0,103970.0,0.01228236]
[1746779532834,0.76426043,103980.0,103970.0,0.001]
[1746779533231,0.7604478,103980.0,103970.0,0.02527966]
[1746779533431,0.75771633,103980.0,103970.0,0.02527966]
[1746779533632,0.79518573,103980.0,103970.0,0.014]
[1746779533828,0.98989663,103980.0,103970.0,0.014]
[1746779534027,0.833256,103980.0,103970.0,0.001]
[1746779534235,0.19105007,103970.0,103960.0,0.4049]
[1746779534532,0.1923713,103950.0,103940.0,0.7597]
[1746779534733,0.5875824,103960.0,103940.0,0.3578]
[1746779534927,0.0871,103950.0,103940.0,0.45794268]
[1746779535236,0.44091593,103950.0,103940.0,0.45794268]
[1746779535436,0.44091593,103950.0,103940.0,0.36984268]
[1746779535639,0.80171593,103950.0,103940.0,0.01504268]
[1746779536125,0.95735656,103950.0,103940.0,0.01904268]
[1746779536331,0.89791993,103950.0,103940.0,0.01904268]
[1746779536631,1.05356056,103950.0,103940.0,0.01904268]
[1746779536934,0.1923898,103940.0,103930.0,0.00101029]
[1746779537134,0.1924268,103920.0,103910.0,0.3578]
[1746779537432,0.1924639,103900.0,103890.0,0.41691063]
[1746779537633,0.72014569,103900.0,103890.0,0.41391063]
[1746779537939,0.72014569,103900.0,103890.0,0.41091063]
[1746779537940,0.60550506,103900.0,103890.0,0.41091063]
[1746779538239,0.1924824,103890.0,103880.0,0.0441]
[1746779538438,0.1925009,103880.0,103870.0,0.4489]
[1746779538636,0.041,103880.0,103870.0,0.65347181]
[1746779538830,0.041,103880.0,103870.0,0.74973209]
[1746779539228,0.201,103880.0,103870.0,0.55721269]
[1746779539438,0.3935009,103880.0,103870.0,0.55721269]
[1746779539634,0.39494553,103880.0,103870.0,0.01505241]
[1746779540136,0.75574553,103880.0,103860.0,0.67694424]
[1746779540338,0.08674463,103870.0,103860.0,0.32978237]
[1746779540529,0.16,103880.0,103870.0,0.1925194]
[1746779540736,0.16,103880.0,103870.0,0.43936003]
[1746779540931,0.16,103880.0,103870.0,0.2837194]
[1746779541132,0.16,103880.0,103870.0,0.40199822]
[1746779541133,0.161,103880.0,103870.0,0.40199822]
[1746779541335,0.44704553,103880.0,103870.0,0.1132]
[1746779541534,0.80784553,103880.0,103870.0,0.0685]
[1746779542035,0.80784553,103880.0,103870.0,0.2610194]
[1746779542238,0.8064009,103880.0,103870.0,0.022]
[1746779542440,0.96348616,103880.0,103870.0,0.022]
[1746779542741,0.80784553,103880.0,103870.0,0.022]
[1746779542929,0.61534463,103880.0,103870.0,0.2145194]
[1746779543131,0.44704553,103880.0,103870.0,0.2145194]
[1746779543339,0.44704553,103880.0,103870.0,0.022]
[1746779543537,0.1925009,103880.0,103870.0,0.2145194]
[1746779543843,0.1925009,103880.0,103870.0,0.022]
[1746779544236,0.3525009,103880.0,103870.0,0.022]
[1746779544529,0.3525009,103880.0,103870.0,0.3828]
[1746779544732,0.3525009,103880.0,103870.0,0.022]
[1746779546740,0.4455009,103880.0,103870.0,0.2145194]
[1746779546940,0.4455009,103880.0,103870.0,0.022]
[1746779547547,0.4455009,103880.0,103870.0,0.02392548]
[1746779548248,0.253,103880.0,103870.0,0.30744488]
[1746779548544,0.253,103880.0,103870.0,0.66824488]
[1746779548843,0.253,103880.0,103870.0,0.82388551]
[1746779549045,0.253,103880.0,103870.0,0.66824488]
[1746779549248,0.4455009,103880.0,103870.0,0.66824488]
[1746779550134,0.4455009,103880.0,103870.0,0.47572548]
[1746779550339,0.4455009,103880.0,103870.0,0.30744488]
[1746779550534,0.8063009,103880.0,103870.0,0.30744488]
[1746779550736,0.8063009,103880.0,103870.0,0.02392548]
[1746779550943,0.8519009,103880.0,103870.0,0.02392548]
[1746779551243,1.00754153,103880.0,103870.0,0.02392548]
[1746779551648,0.8519009,103880.0,103870.0,0.02392548]
[1746779551946,1.10380953,103880.0,103870.0,0.02392548]
[1746779552142,0.9481689,103880.0,103870.0,0.02392548]
[1746779552339,1.51360953,103880.0,103870.0,0.02392548]
[1746779552539,0.1925194,103870.0,103860.0,0.00101097]
[1746779552844,0.6424194,103870.0,103860.0,0.00101097]
[1746779553549,0.89434003,103870.0,103860.0,0.00101097]
[1746779553745,0.89434003,103870.0,103860.0,0.01801097]
[1746779553746,0.6424194,103870.0,103860.0,0.01801097]
[1746779554138,0.95806003,103870.0,103860.0,0.01801097]
[1746779554642,0.8024194,103870.0,103860.0,0.02101097]
[1746779554945,0.95806003,103870.0,103860.0,0.02101097]
[1746779555146,0.8104194,103870.0,103860.0,0.01901097]
[1746779555547,0.8104194,103870.0,103860.0,0.00201097]
[1746779555743,0.8104194,103870.0,103860.0,0.00601097]
[1746779556546,1.06234003,103870.0,103860.0,0.00201097]
[1746779556749,0.1925565,103850.0,103840.0,0.0914]
[1746779557248,0.1925565,103850.0,103840.0,0.43961573]
[1746779557249,0.16,103850.0,103840.0,0.43961573]
[1746779557448,0.16,103850.0,103840.0,0.6447751]
[1746779557845,0.16,103850.0,103840.0,0.80041573]
[1746779558237,0.005,103850.0,103840.0,0.742059]
[1746779558750,0.005,103850.0,103840.0,0.90169963]
[1746779559148,0.005,103850.0,103840.0,0.746059]
[1746779559348,0.005,103850.0,103840.0,0.6497751]
[1746779559744,0.005,103850.0,103840.0,0.80541573]
[1746779560252,0.005,103850.0,103840.0,0.6497751]
[1746779560550,0.1975565,103850.0,103840.0,0.0509]
[1746779560747,0.0995,103850.0,103840.0,0.6042751]
[1746779560947,0.2920565,103850.0,103840.0,0.6506751]
[1746779561146,0.3608,103880.0,103870.0,0.1925194]
[1746779561343,0.4951084,103890.0,103870.0,0.39627643]
[1746779561550,0.9040317,103890.0,103880.0,0.0939]
[1746779561747,0.2545,103890.0,103880.0,0.44204153]
[1746779562048,0.4469824,103890.0,103880.0,0.0939]
[1746779562644,0.8077824,103890.0,103880.0,0.0939]
[1746779562851,0.4469824,103890.0,103880.0,0.0939]
[1746779563065,0.8077824,103890.0,103880.0,0.0939]
[1746779563263,0.4469824,103890.0,103880.0,0.0979]
[1746779563967,0.4529824,103890.0,103880.0,0.2914009]
[1746779564366,0.4529824,103890.0,103880.0,0.2904009]
[1746779564560,0.4509824,103890.0,103880.0,0.2904009]
[1746779565261,0.2909824,103890.0,103880.0,0.0979]
[1746779565659,0.2909824,103890.0,103880.0,0.2904009]
[1746779565859,0.2909824,103890.0,103880.0,0.0979]
[1746779567563,0.6517824,103890.0,103880.0,0.0515]
[1746779568166,0.96742303,103890.0,103880.0,0.0515]
[1746779568964,0.96742303,103890.0,103880.0,0.004]
[1746779569168,0.8117824,103890.0,103880.0,0.004]
[1746779569366,0.96742303,103890.0,103880.0,0.004]
[1746779569565,0.8117824,103890.0,103880.0,0.004]
[1746779569769,0.96742303,103890.0,103880.0,0.004]
[1746779570370,0.8117824,103890.0,103880.0,0.004]
[1746779570565,0.8117824,103890.0,103880.0,0.00094135]
[1746779571068,0.6517824,103890.0,103880.0,0.09284135]
[1746779571262,0.004,103890.0,103880.0,0.44098288]
[1746779571568,0.004,103890.0,103880.0,0.28534225]
[1746779571763,0.1964824,103890.0,103880.0,0.28534225]
[1746779571982,0.1988824,103890.0,103880.0,0.45364135]
[1746779572478,0.1948824,103890.0,103880.0,0.4567]
[1746779572776,0.1948824,103890.0,103880.0,0.47119066]
[1746779572777,0.1968824,103890.0,103880.0,0.47119066]
[1746779573178,0.1968824,103890.0,103880.0,0.4567]
[1746779573571,0.0044,103890.0,103880.0,0.4567]
[1746779573983,0.1948824,103890.0,103880.0,0.6492009]
[1746779574166,0.1948824,103890.0,103880.0,0.6452009]
[1746779574167,0.1988824,103890.0,103880.0,0.6452009]
[1746779574372,0.2483824,103890.0,103880.0,0.6452009]
[1746779574572,0.0074,103890.0,103880.0,0.6452009]
[1746779575282,0.5606824,103890.0,103880.0,0.0919]
[1746779575473,0.6091824,103890.0,103880.0,0.0919]
[1746779575672,0.81332303,103890.0,103880.0,0.0919]
[1746779575880,0.7539409,103890.0,103870.0,0.2396194]
[1746779576083,0.6088167,103890.0,103880.0,0.0444]
[1746779576379,0.1674,103890.0,103880.0,0.6419009]
[1746779576779,0.3598824,103890.0,103880.0,0.6419009]
[1746779577074,0.32304063,103890.0,103880.0,0.0886]
[1746779577271,0.1674,103890.0,103880.0,0.0886]
[1746779577466,0.5282,103890.0,103880.0,0.0886]
[1746779577672,0.1674,103890.0,103880.0,0.2811009]
[1746779577969,0.1674,103890.0,103880.0,0.6419009]
[1746779578171,0.0074,103890.0,103880.0,0.6419009]
[1746779579971,0.16304063,103890.0,103880.0,0.2811009]
[1746779580167,0.16304063,103890.0,103880.0,0.0444]
[1746779580575,0.15904063,103890.0,103880.0,0.0444]
[1746779580776,0.16004063,103890.0,103880.0,0.2369009]
[1746779580976,0.16004063,103890.0,103870.0,0.56696008]
[1746779580977,0.76144443,103890.0,103870.0,0.30184248]
[1746779581177,0.92144443,103890.0,103880.0,0.002]
[1746779581379,0.87332303,103890.0,103880.0,0.002]
[1746779581677,0.7176824,103890.0,103880.0,0.002]
[1746779581879,0.64393568,103890.0,103880.0,0.002]
[1746779582069,0.47561808,103890.0,103880.0,0.002]
[1746779582379,0.7176824,103890.0,103870.0,0.35365218]
[1746779582583,0.11873568,103880.0,103870.0,0.35365218]
[1746779582881,0.7176824,103890.0,103870.0,0.40178188]
[1746779583078,0.11873568,103880.0,103870.0,0.40178188]
[1746779583283,0.11873568,103880.0,103870.0,0.76258188]
[1746779583486,0.11873568,103880.0,103870.0,0.40178188]
[1746779583677,0.1624,103890.0,103870.0,0.76058188]
[1746779583978,0.64193568,103890.0,103880.0,0.099]
[1746779584479,0.5232,103890.0,103880.0,0.099]
[1746779584680,0.64193568,103890.0,103880.0,0.097]
[1746779584986,0.83641808,103890.0,103880.0,0.097]
[1746779585181,0.1925009,103880.0,103870.0,0.01610328]
[1746779585376,0.67203658,103880.0,103870.0,0.01610328]
[1746779585576,0.71763658,103880.0,103870.0,0.01610328]
[1746779585886,0.2887962,103870.0,103840.0,0.2888479]
[1746779586088,0.11873568,103860.0,103850.0,0.0977]
[1746779586276,0.31127368,103860.0,103850.0,0.2902565]
[1746779586477,0.192538,103860.0,103850.0,0.2902565]
[1746779586678,0.31127368,103860.0,103850.0,0.2902565]
[1746779587073,0.76833188,103870.0,103850.0,0.338395]
[1746779587279,0.5533194,103870.0,103860.0,0.192538]
[1746779587481,0.3608,103870.0,103860.0,0.286838]
[1746779587680,0.67205508,103870.0,103860.0,0.0943]
[1746779588286,0.67805508,103870.0,103860.0,0.0943]
[1746779588488,0.5593194,103870.0,103860.0,0.0943]
[1746779588689,0.192538,103860.0,103850.0,0.001]
[1746779588883,0.7037321,103870.0,103850.0,0.1935565]
[1746779589087,0.67806758,103870.0,103850.0,0.549277]
[1746779589290,0.6555964,103870.0,103860.0,0.0909]
[1746779589489,0.77433208,103870.0,103860.0,0.0909]
[1746779589792,0.77233208,103870.0,103860.0,0.0909]
[1746779591292,0.6535964,103870.0,103860.0,0.0909]
[1746779591492,0.72419978,103870.0,103860.0,0.0909]
[1746779593287,0.72419978,103870.0,103860.0,0.10595665]
[1746779593484,0.77309978,103870.0,103860.0,0.10595665]
[1746779593684,0.6543641,103870.0,103860.0,0.10595665]
[1746779593886,0.77309978,103870.0,103860.0,0.01505665]
[1746779594188,0.192538,103860.0,103850.0,0.0953]
[1746779594388,0.4097,103860.0,103850.0,0.0953]
[1746779594594,0.36017368,103860.0,103850.0,0.0953]
[1746779595089,0.0489,103860.0,103850.0,0.0953]
[1746779595297,0.0489,103860.0,103850.0,0.11035709]
[1746779595490,0.0509,103860.0,103850.0,0.11035709]
[1746779595687,0.16963568,103860.0,103850.0,0.47115709]
[1746779596089,0.36217368,103860.0,103850.0,0.47115709]
[1746779596592,0.243438,103860.0,103850.0,0.47215709]
[1746779596997,0.36217368,103860.0,103850.0,0.47215709]
[1746779597193,0.36217368,103860.0,103850.0,0.6171]
[1746779597594,0.002,103860.0,103850.0,0.8096565]
[1746779598189,0.12073568,103860.0,103850.0,0.8096565]
[1746779598592,0.12073568,103860.0,103850.0,0.6171]
[1746779598802,0.002,103860.0,103850.0,0.6171]
[1746779599004,0.31327368,103860.0,103850.0,0.63181372]
[1746779599303,0.12073568,103860.0,103850.0,0.63181372]
[1746779599498,0.48153568,103860.0,103850.0,0.27101372]
[1746779599703,0.76697368,103860.0,103850.0,0.27101372]
[1746779600001,0.21363568,103860.0,103850.0,0.63181372]
[1746779600201,0.21363568,103860.0,103850.0,0.6171]
[1746779600903,0.0949,103860.0,103850.0,0.6171]
[1746779601299,0.21363568,103860.0,103850.0,0.6171]
[1746779601496,0.21363568,103860.0,103850.0,0.63191341]
[1746779601693,0.0949,103860.0,103850.0,0.63191341]
[1746779601896,0.40617368,103860.0,103850.0,0.63191341]
[1746779602093,0.56617368,103860.0,103850.0,0.47191341]
[1746779602800,0.447438,103860.0,103850.0,0.47191341]
[1746779603102,0.56617368,103860.0,103850.0,0.47191341]
[1746779603298,0.40617368,103860.0,103850.0,0.47191341]
[1746779603706,0.40617368,103860.0,103850.0,0.4571]
[1746779604102,0.287438,103860.0,103850.0,0.4571]
[1746779604312,0.40617368,103860.0,103850.0,0.4571]
[1746779604519,0.21363568,103860.0,103850.0,0.4571]
[1746779604705,0.16903568,103860.0,103850.0,0.4571]
[1746779605111,0.16903568,103860.0,103850.0,0.66471344]
[1746779605313,0.21773568,103860.0,103850.0,0.66471344]
[1746779605519,0.099,103860.0,103850.0,0.66471344]
[1746779605717,0.12073568,103860.0,103850.0,0.66471344]
[1746779605914,0.002,103860.0,103850.0,0.66471344]
[1746779606107,0.12073568,103860.0,103850.0,0.66471344]
[1746779606308,0.17033568,103860.0,103850.0,0.66471344]
[1746779606513,0.17033568,103860.0,103850.0,0.6496565]
[1746779606514,0.21903568,103860.0,103850.0,0.6496565]
[1746779607023,0.0516,103860.0,103850.0,0.6496565]
[1746779607224,0.002,103860.0,103850.0,0.6496565]
[1746779607910,0.12073568,103860.0,103850.0,0.6496565]
[1746779608114,0.12073568,103860.0,103850.0,0.66471339]
[1746779608317,0.002,103860.0,103850.0,0.66471339]
[1746779608522,0.002,103860.0,103850.0,0.76100148]
[1746779608923,0.12073568,103860.0,103850.0,0.76100148]
[1746779609227,0.31327368,103860.0,103850.0,0.56844498]
[1746779609422,0.31327368,103860.0,103850.0,0.47215689]
[1746779609625,0.40627368,103860.0,103850.0,0.47215689]
[1746779610126,0.56627368,103860.0,103850.0,0.47215689]
[1746779611227,0.447538,103860.0,103850.0,0.47215689]
[1746779611525,0.255,103860.0,103850.0,0.6496565]
[1746779611826,0.2092,103860.0,103850.0,0.6496565]
[1746779612021,0.162,103860.0,103850.0,0.6496565]
[1746779612217,0.002,103860.0,103850.0,0.76839218]
[1746779612419,0.0961,103880.0,103870.0,0.1925194]
[1746779612614,0.0961,103880.0,103870.0,0.5533194]
[1746779612818,0.40733658,103880.0,103870.0,0.4574]
[1746779613015,0.21483568,103880.0,103870.0,0.4574]
[1746779613219,0.56733658,103880.0,103870.0,0.4574]
[1746779613421,0.92813658,103880.0,103870.0,0.0966]
[1746779613621,0.4486009,103880.0,103870.0,0.0966]
[1746779613822,0.56733658,103880.0,103870.0,0.0966]
[1746779614117,0.2561,103880.0,103870.0,0.6499194]
[1746779614321,0.16,103880.0,103870.0,0.76865508]
[1746779614517,0.1624,103880.0,103870.0,0.6499194]
[1746779614926,0.47363658,103880.0,103870.0,0.4574]
[1746779615127,0.3549009,103880.0,103870.0,0.4574]
[1746779615329,0.4552009,103880.0,103870.0,0.4574]
[1746779615519,0.57593658,103880.0,103870.0,0.4574]
[1746779615725,0.1925194,103870.0,103860.0,0.7767]
[1746779615925,0.35885508,103870.0,103860.0,0.8221]
[1746779616125,0.4478194,103870.0,103860.0,0.8221]
[1746779616327,0.56655508,103870.0,103860.0,0.8221]
[1746779616536,0.4478194,103870.0,103860.0,0.8221]
[1746779617033,0.4478194,103870.0,103860.0,0.8694]
[1746779617333,0.56655508,103870.0,103860.0,0.8694]
[1746779617727,0.4478194,103870.0,103860.0,0.8694]
[1746779617927,0.56955508,103870.0,103860.0,0.8694]
[1746779618134,0.4508194,103870.0,103860.0,0.8694]
[1746779618335,0.56955508,103870.0,103860.0,0.88445582]
[1746779618642,0.56955508,103870.0,103860.0,0.46855582]
[1746779619029,0.56955508,103870.0,103860.0,0.4535]
[1746779619935,0.4508194,103870.0,103860.0,0.4535]
[1746779620134,0.56955508,103870.0,103860.0,0.4535]
[1746779620932,0.93035508,103870.0,103860.0,0.0927]
[1746779621138,0.0962732,103860.0,103840.0,0.83783039]
[1746779621438,0.6496549,103850.0,103830.0,0.9692936]
[1746779621638,0.6993549,103850.0,103840.0,0.0481]
[1746779621936,0.1925751,103840.0,103830.0,0.01505924]
[1746779622138,0.8127751,103840.0,103830.0,0.01505924]
[1746779622334,1.14655446,103840.0,103830.0,0.01505924]
[1746779622538,0.1925936,103830.0,103820.0,0.04911131]
[1746779622839,0.2384936,103830.0,103820.0,0.04911131]
[1746779623037,0.71802928,103830.0,103820.0,0.04911131]
[1746779623238,0.51722928,103830.0,103820.0,0.06417431]
[1746779623425,0.7592936,103830.0,103820.0,0.06417431]
[1746779623631,0.87802928,103830.0,103820.0,0.06417431]
[1746779624533,0.7622936,103830.0,103820.0,0.06417431]
[1746779624834,0.88102928,103830.0,103820.0,0.06417431]
[1746779625034,0.2089,103830.0,103820.0,0.66618651]
[1746779625437,0.163,103830.0,103820.0,0.71318651]
[1746779626140,0.003,103830.0,103820.0,0.71318651]
[1746779626339,0.1955936,103830.0,103820.0,0.71318651]
[1746779626541,0.20540831,103830.0,103820.0,0.71318651]
[1746779626937,0.01281471,103830.0,103820.0,0.71418651]
[1746779627134,0.00981471,103830.0,103820.0,0.71418651]
[1746779627339,0.001,103830.0,103820.0,0.83292219]
[1746779627543,0.001,103830.0,103820.0,1.22640242]
[1746779628136,0.31232928,103830.0,103820.0,0.16077431]
[1746779628339,0.24836778,103830.0,103820.0,0.11377431]
[1746779629239,0.52710346,103830.0,103820.0,0.11377431]
[1746779629437,0.88790346,103830.0,103820.0,0.11377431]
[1746779629735,0.88790346,103830.0,103820.0,0.06517431]
[1746779630132,1.00663914,103830.0,103820.0,0.01707431]
[1746779630335,0.76916778,103830.0,103820.0,0.01707431]
[1746779630537,1.00663914,103830.0,103820.0,0.01707431]
[1746779630948,0.76916778,103830.0,103820.0,0.00201131]
[1746779631248,1.00663914,103830.0,103820.0,0.00201131]
[1746779631537,0.17047418,103830.0,103820.0,0.67415919]
[1746779631737,0.17047418,103830.0,103820.0,0.70052351]
[1746779631940,0.17047418,103830.0,103820.0,0.69952351]
[1746779632244,0.37527418,103830.0,103820.0,0.33872351]
[1746779632444,0.18250986,103830.0,103820.0,0.33872351]
[1746779632744,0.18950986,103830.0,103820.0,0.35478472]
[1746779632938,0.06677418,103830.0,103820.0,0.71558472]
[1746779633539,0.01647418,103830.0,103820.0,0.71558472]
[1746779634045,0.00947418,103830.0,103820.0,0.71458472]
[1746779634233,0.002,103830.0,103820.0,0.81090063]
[1746779634438,0.002,103830.0,103820.0,0.92963631]
[1746779635947,0.002,103830.0,103820.0,0.81090063]
[1746779636242,0.002,103830.0,103820.0,1.10093111]
[1746779636446,0.00144526,103860.0,103850.0,0.1925565]
[1746779636742,0.00144526,103860.0,103850.0,0.78365339]
[1746779637048,0.01111987,103860.0,103850.0,0.71401771]
[1746779637238,0.05214526,103860.0,103850.0,0.71401771]
[1746779637938,0.05214526,103860.0,103850.0,0.71501771]
[1746779637939,0.10984526,103860.0,103850.0,0.71501771]
[1746779638141,0.07474648,103860.0,103850.0,0.71501771]
[1746779639249,0.01544526,103860.0,103850.0,0.71501771]
[1746779640138,0.01544526,103860.0,103850.0,0.87089683]
[1746779640339,0.01544526,103860.0,103850.0,0.87501771]
[1746779640945,0.01544526,103860.0,103850.0,1.23758996]
[1746779641453,0.01544526,103860.0,103850.0,1.09300169]
[1746779641945,0.00944526,103860.0,103850.0,1.24988081]
[1746779642145,0.008,103860.0,103850.0,1.09400169]
[1746779642847,0.008,103860.0,103850.0,0.99771369]
[1746779643048,0.200538,103860.0,103850.0,0.89013475]
[1746779643248,0.247638,103860.0,103850.0,0.73013475]
[1746779643449,0.0551,103860.0,103850.0,0.73013475]
[1746779643748,0.00957622,103870.0,103860.0,0.192538]
[1746779643950,0.3889641,103880.0,103870.0,0.1925194]
[1746779644153,0.5489641,103880.0,103870.0,0.2866194]
[1746779644453,0.5008346,103880.0,103870.0,0.2866194]
[1746779644655,0.4527086,103880.0,103870.0,0.2866194]
[1746779644852,0.4527009,103880.0,103870.0,0.2866194]
[1746779645048,0.4527009,103880.0,103870.0,0.6474194]
[1746779645249,0.4567009,103880.0,103870.0,0.66247389]
[1746779645556,0.4567009,103880.0,103870.0,0.46995449]
[1746779645753,0.27602352,103880.0,103870.0,0.66247389]
[1746779645951,0.46852442,103880.0,103870.0,0.46995449]
[1746779646855,0.82932442,103880.0,103870.0,0.10915449]
[1746779647052,0.98520354,103880.0,103870.0,0.06115449]
[1746779647455,1.14108266,103880.0,103870.0,0.01505449]
[1746779647658,0.82932442,103880.0,103870.0,0.01505449]
[1746779647953,0.98520354,103880.0,103870.0,0.01505449]
[1746779648153,0.1925194,103870.0,103860.0,0.4159]
[1746779648352,0.75569852,103870.0,103860.0,0.4159]
[1746779648546,0.82659852,103870.0,103860.0,0.43095681]
[1746779649150,0.8307194,103870.0,103860.0,0.4159]
[1746779649757,0.98659852,103870.0,103860.0,0.4647]
[1746779649957,0.98659852,103870.0,103860.0,0.5134]
[1746779650358,0.62779852,103870.0,103860.0,0.5284569]
[1746779650557,0.98859852,103870.0,103860.0,0.5284569]
[1746779651260,0.8327194,103870.0,103860.0,0.4797569]
[1746779651457,0.98859852,103870.0,103860.0,0.0638569]
[1746779651654,0.8327194,103870.0,103860.0,0.0488]
[1746779651859,0.192538,103860.0,103850.0,0.0487]
[1746779652155,0.60621712,103860.0,103850.0,0.2891565]
[1746779652356,0.41367912,103860.0,103850.0,0.30421433]
[1746779652563,0.60621712,103860.0,103850.0,0.30421433]
[1746779652856,0.60621712,103860.0,103850.0,0.66501433]
[1746779653059,0.60621712,103860.0,103850.0,0.0479]
[1746779653060,0.77447912,103860.0,103850.0,0.0479]
[1746779653358,1.11144532,103860.0,103830.0,0.2410924]
[1746779653567,0.1447,103850.0,103840.0,0.1925751]
[1746779653755,0.0491,103850.0,103840.0,0.6020751]
[1746779653951,0.2087,103860.0,103850.0,0.1925565]
[1746779654257,0.2091,103860.0,103850.0,0.6516565]
[1746779654558,0.16,103860.0,103850.0,0.6526565]
[1746779654863,0.1299931,103860.0,103850.0,1.00112098]
[1746779655060,0.1323931,103860.0,103850.0,1.26114186]
[1746779655254,0.0024,103860.0,103850.0,1.02029605]
[1746779655451,0.0024,103860.0,103850.0,1.03158693]
[1746779656052,0.0024,103860.0,103850.0,1.18746605]
[1746779656259,0.096,103890.0,103850.0,1.07361867]
[1746779656460,0.096,103890.0,103880.0,0.5533009]
[1746779656461,0.0988,103890.0,103880.0,0.5533009]
[1746779656862,0.10831324,103890.0,103880.0,0.61445509]
[1746779657255,0.26831324,103890.0,103880.0,0.61445509]
[1746779657660,0.27431324,103890.0,103880.0,0.61445509]
[1746779657971,0.47079564,103890.0,103880.0,0.61445509]
[1746779658167,0.83159564,103890.0,103880.0,0.01505419]
[1746779658355,0.51809564,103890.0,103880.0,0.01505419]
[1746779658560,0.63679944,103890.0,103880.0,0.20755509]
[1746779658760,0.99759944,103890.0,103880.0,0.0461]
[1746779658961,0.1925009,103880.0,103870.0,0.5999085]
[1746779659162,0.5658047,103880.0,103870.0,0.3608]
[1746779659455,0.4471009,103880.0,103870.0,0.3608]
[1746779659661,0.2546,103880.0,103870.0,0.5533194]
[1746779659857,0.2546,103880.0,103870.0,0.6028194]
[1746779660063,0.4471009,103880.0,103870.0,0.6028194]
[1746779660369,0.2546,103880.0,103870.0,0.6028194]
[1746779660877,0.2586,103880.0,103870.0,0.61787328]
[1746779661280,0.2606,103880.0,103870.0,0.61787328]
[1746779661975,0.2144,103880.0,103870.0,0.77369375]
[1746779662169,0.0544,103880.0,103870.0,0.66417328]
[1746779662576,0.006,103880.0,103870.0,0.66417328]
[1746779663081,0.006,103880.0,103870.0,0.47165388]
[1746779663277,0.4095009,103880.0,103870.0,0.66417328]
[1746779663486,0.4565009,103880.0,103870.0,0.66417328]
[1746779663782,0.4525009,103880.0,103870.0,0.66417328]
[1746779664181,0.4505009,103880.0,103870.0,0.66417328]
[1746779664377,0.4505009,103880.0,103870.0,0.66517328]
[1746779664577,0.258,103880.0,103870.0,0.66517328]
[1746779665379,0.211,103880.0,103870.0,0.66517328]
[1746779665579,0.4035009,103880.0,103870.0,0.66517328]
[1746779665784,0.4538009,103880.0,103870.0,0.66517328]
[1746779665991,0.2613,103880.0,103870.0,0.66517328]
[1746779666475,0.3525009,103880.0,103870.0,0.66517328]
[1746779666879,0.16,103880.0,103870.0,0.66517328]
[1746779667586,0.16,103880.0,103870.0,0.82099375]
[1746779667888,0.16,103880.0,103870.0,0.9172633]
[1746779668081,0.30439644,103890.0,103880.0,0.1925009]
[1746779668284,0.30439644,103890.0,103880.0,0.6024009]
[1746779668791,0.30439644,103890.0,103880.0,0.61745478]
[1746779669089,0.46439644,103890.0,103880.0,0.61745478]
[1746779670086,0.36439644,103890.0,103880.0,0.61745478]
[1746779670293,0.17391324,103890.0,103880.0,0.61745478]
[1746779671186,0.36639564,103890.0,103880.0,0.42495388]
[1746779671492,0.46179564,103890.0,103880.0,0.06415388]
[1746779672087,0.61761611,103890.0,103880.0,0.06415388]
[1746779672283,0.82259564,103890.0,103880.0,0.06415388]
[1746779672588,0.46179564,103890.0,103880.0,0.42495388]
[1746779672986,0.61761611,103890.0,103880.0,0.06415388]
[1746779673192,0.61761611,103890.0,103880.0,0.01505388]
[1746779673387,0.51139564,103890.0,103880.0,0.06205388]
[1746779673590,0.17391324,103890.0,103880.0,0.30475478]
[1746779673792,0.17391324,103890.0,103880.0,0.66555478]
[1746779674091,0.0044,103890.0,103880.0,0.83684409]
[1746779674287,0.0044,103890.0,103880.0,0.93310437]
[1746779674997,0.0044,103890.0,103880.0,1.34900437]
[1746779675293,0.0044,103890.0,103880.0,1.18900437]
[1746779676087,0.0485,103910.0,103880.0,1.09276347]
[1746779676290,0.0516,103920.0,103910.0,0.1924453]
[1746779676488,0.1001,103920.0,103910.0,0.3608]
[1746779676693,0.1001,103920.0,103910.0,0.68128604]
[1746779676892,0.08854298,103920.0,103910.0,0.48884074]
[1746779677100,0.16,103920.0,103910.0,0.72939474]
[1746779677295,0.16,103920.0,103910.0,0.72938414]
[1746779678193,0.6494045,103940.0,103910.0,0.77749544]
[1746779678387,0.6996045,103940.0,103920.0,0.0988]
[1746779678592,0.5532083,103930.0,103920.0,0.01128686]